fUST/lending_fUST_20260628
["ID","MTS","AMOUNT","RATE_DAILY","PERIOD"]
[426572181,1782610240000,-3000.0,0.0002991,2]
[426572183,1782610240000,-3000.0,0.0002992,2]
[426572186,1782610240000,-3000.0,0.0002995,2]
[426572188,1782610240000,-3000.0,0.0002997,2]
[426572187,1782610240000,-3000.0,0.0002996,2]
[426572120,1782610240000,-200.0,0.00028163,2]
[426572175,1782610240000,-6777.318204,0.00029331,2]
[426572163,1782610240000,-160.0,0.0002919,2]
[426572097,1782610240000,-497.92914224,0.00026444,2]
[426572157,1782610240000,-152.91649948,0.0002919,2]
[426572156,1782610240000,-204.80052165,0.0002919,2]
[426572130,1782610240000,-1421.0,0.00028757,2]
[426572131,1782610240000,-25234.35348786,0.0002876,2]
[426572129,1782610240000,-446.0,0.00028757,2]
[426572133,1782610240000,-98120.77100519,0.00029,2]
[426572135,1782610240000,-151.57426548,0.00029131,2]
[426572136,1782610240000,-300.0,0.0002919,2]
[426572134,1782610240000,-4366.17409336,0.00029,2]
[426572140,1782610240000,-648.23273874,0.0002919,2]
[426572137,1782610240000,-824.16098718,0.0002919,2]
[426572139,1782610240000,-296.91835046,0.0002919,2]
[426572138,1782610240000,-332.69052254,0.0002919,2]
[426572141,1782610240000,-1385.33043386,0.0002919,2]
[426572132,1782610240000,-900.01255888,0.00029,2]
[426572144,1782610240000,-752.09129717,0.0002919,2]
[426572155,1782610240000,-1585.07918652,0.0002919,2]
[426572142,1782610240000,-159.28891037,0.0002919,2]
[426572158,1782610240000,-263.042407,0.0002919,2]
[426572146,1782610240000,-516.36845874,0.0002919,2]
[426572153,1782610240000,-1421.14012697,0.0002919,2]
[426572154,1782610240000,-662.47635704,0.0002919,2]
[426572128,1782610240000,-186.0,0.00028757,2]
[426572149,1782610240000,-1620.76669652,0.0002919,2]
[426572151,1782610240000,-192.40874875,0.0002919,2]
[426572147,1782610240000,-591.39623639,0.0002919,2]
[426572148,1782610240000,-475.94940884,0.0002919,2]
[426572145,1782610240000,-160.26650822,0.0002919,2]
[426572143,1782610240000,-714.66836682,0.0002919,2]
[426572152,1782610240000,-1215.83990532,0.0002919,2]
[426572213,1782610241000,-625.44,0.00030137,2]
[426572211,1782610241000,-508.47280042,0.0003013,2]
[426572215,1782610241000,-151.0,0.00030137,14]
[426572214,1782610241000,-398.01,0.00030137,7]
[426572212,1782610241000,-3000.0,0.0003013,3]
[426572216,1782610241000,-151.0,0.00030137,14]
[426572218,1782610241000,-151.0,0.00030137,14]
[426572219,1782610241000,-151.0,0.00030137,14]
[426572222,1782610241000,-151.0,0.00030137,14]
[426572220,1782610241000,-151.0,0.00030137,14]
[426572221,1782610241000,-151.0,0.00030137,14]
[426572223,1782610241000,-151.0,0.00030137,14]
[426572224,1782610241000,-162.5457393,0.00030137,14]
[426572228,1782610241000,-3000.0,0.0003017,3]
[426572227,1782610241000,-3000.0,0.0003016,3]
[426572230,1782610241000,-3000.0,0.0003019,3]
[426572208,1782610241000,-3000.0,0.0003012,2]
[426572217,1782610241000,-151.0,0.00030137,14]
[426572225,1782610241000,-3000.0,0.0003014,3]
[426572197,1782610241000,-179.14,0.00030024,2]
[426572207,1782610241000,-3000.0,0.0003011,2]
[426572192,1782610241000,-1004.87315091,0.0003,2]
[426572189,1782610241000,-3000.0,0.0002998,2]
[426572193,1782610241000,-272.51702974,0.0003,2]
[426572190,1782610241000,-3000.0,0.0002999,2]
[426572191,1782610241000,-380.23721269,0.0003,2]
[426572195,1782610241000,-3000.0,0.0003001,2]
[426572194,1782610241000,-3000.0,0.0003,2]
[426572226,1782610241000,-3000.0,0.0003015,3]
[426572196,1782610241000,-3000.0,0.0003002,2]
[426572205,1782610241000,-3000.0,0.0003009,2]
[426572200,1782610241000,-3000.0,0.0003004,2]
[426572206,1782610241000,-3000.0,0.000301,2]
[426572201,1782610241000,-3000.0,0.0003005,2]
[426572202,1782610241000,-3000.0,0.0003006,2]
[426572203,1782610241000,-3000.0,0.0003007,2]
[426572198,1782610241000,-179.14,0.00030024,2]
[426572199,1782610241000,-3000.0,0.0003003,2]
[426572204,1782610241000,-3000.0,0.0003008,2]
[426572209,1782610241000,-152.544,0.00030124,2]
[426572210,1782610241000,-249.07,0.00030124,2]
[426572232,1782610241000,-3000.0,0.0003021,3]
[426572236,1782610241000,-3000.0,0.0003025,3]
[426572231,1782610241000,-3000.0,0.000302,3]
[426572258,1782610241000,-202.71671751,0.00032,2]
[426572259,1782610241000,-6261.21497006,0.00032187,2]
[426572261,1782610241000,-238.74555,0.000323,120]
[426572262,1782610241000,-475.78,0.000324,30]
[426572260,1782610241000,-200.0,0.0003225,2]
[426572229,1782610241000,-3000.0,0.0003018,3]
[426572267,1782610241000,-217.65,0.00032877,120]
[426572271,1782610241000,-3715.72626716,0.00033333,2]
[426572265,1782610241000,-151.0,0.000326,16]
[426572264,1782610241000,-1000.0,0.00032583,2]
[426572268,1782610241000,-1599.063438,0.00033,2]
[426572269,1782610241000,-456.46,0.000332,10]
[426572270,1782610241000,-361515.45123253,0.00033333,2]
[426572266,1782610241000,-200.0,0.00032834,2]
[426572272,1782610241000,-16269.72023898,0.00033333,2]
[426572274,1782610241000,-5036.28654287,0.00033333,2]
[426572273,1782610241000,-1004.355849,0.000291,2]
[426572256,1782610241000,-44374.63499274,0.000319,2]
[426572254,1782610241000,-446.0,0.00031757,2]
[426572263,1782610241000,-430.0,0.0003255,2]
[426572255,1782610241000,-1421.0,0.00031757,2]
[426572257,1782610241000,-300.0,0.00032,120]
[426572235,1782610241000,-3000.0,0.0003024,3]
[426572233,1782610241000,-3000.0,0.0003022,3]
[426572237,1782610241000,-3000.0,0.0003026,3]
[426572238,1782610241000,-3000.0,0.0003027,3]
[426572240,1782610241000,-1554.73105179,0.00030464,2]
[426572241,1782610241000,-200.0,0.00030498,2]
[426572239,1782610241000,-5765.449871,0.0003028,3]
[426572242,1782610241000,-339.29069872,0.00030699,4]
[426572234,1782610241000,-3000.0,0.0003023,3]
[426572243,1782610241000,-309.29270062,0.0003099,2]
[426572245,1782610241000,-490.86946091,0.00031,2]
[426572253,1782610241000,-186.0,0.00031757,2]
[426572251,1782610241000,-200.0,0.00031666,2]
[426572250,1782610241000,-235.75211411,0.00031661,30]
[426572252,1782610241000,-746.0,0.00031757,2]
[426572248,1782610241000,-157.16807607,0.00031317,30]
[426572247,1782610241000,-1344.06083261,0.00031202,2]
[426572249,1782610241000,-671.3867,0.000314,30]
[426572246,1782610241000,-200.0,0.00031082,2]
[426572363,1782610272000,-1339.8508483,0.00012276,13]
[426572370,1782610277000,160.0,0.0002919,30]
[426572376,1782610289000,182.24529672,0.00030107,30]
[426572475,1782610488000,218.42666435,0.0002,120]
[426572517,1782610806000,4584.24849735,0.00029084,120]
[426572543,1782611133000,3922.88921543,0.00029086,120]
[426572986,1782611657000,361.71,0.00030136,120]
[426572997,1782611802000,214.96436246,0.000178,30]
[426573000,1782611834000,160.69573026,0.00029184,30]
[426573004,1782611845000,476.61986131,0.00029184,120]
[426573007,1782611849000,155.98549311,0.00029184,30]
[426573011,1782611851000,152.57893709,0.00029184,120]
[426573026,1782612096000,160.0,0.00029185,30]
[426573307,1782612292000,1780.0,0.00029185,30]
[426573390,1782612367000,5000.0,0.000101,13]
[426573394,1782612390000,5000.0,0.000101,13]
[426573395,1782612400000,1015.38,0.00030136,30]
[426573397,1782612413000,5000.0,0.000101,13]
[426573400,1782612435000,1790.41893404,0.000101,13]
[426573468,1782612583000,2938.71,0.00030136,30]
[426573499,1782612632000,-568.29861974,0.00012375,2]
[426573500,1782612634000,1755.67,0.00030136,30]
[426573523,1782612641000,-1746.42219288,0.00012375,2]
[426573524,1782612641000,-1540.28782494,0.000125,2]
[426573522,1782612641000,-1825.08070627,0.00012375,2]
[426573595,1782613015000,-181.34837894,0.000125,2]
[426573594,1782613015000,-2318.65162106,0.000125,2]
[426573605,1782613198000,1464.15554832,0.00029178,120]
[426573619,1782613481000,55723.27438562,0.0003,120]
[426573627,1782613624000,257.0,0.00030137,30]
[426573677,1782613831000,-19.27095472,0.000125,2]
[426573682,1782613831000,-151.19725962,0.000215,2]
[426573680,1782613831000,-316.00033297,0.000207,2]
[426573686,1782613831000,-772.703,0.00022423,2]
[426573684,1782613831000,-446.0,0.00022423,2]
[426573678,1782613831000,-508.9655,0.000207,2]
[426573692,1782613831000,-1720.17414804,0.000225,2]
[426573690,1782613831000,-1700.01,0.000225,2]
[426573696,1782613831000,-524.7942777,0.00022907,2]
[426573694,1782613831000,-263.9249807,0.00022702,2]
[426573698,1782613831000,-131.24783307,0.00024094,2]
[426573688,1782613831000,-199.339,0.00022423,2]
[426573709,1782613832000,-178.75216693,0.00024094,2]
[426573711,1782613832000,-1098.40332956,0.000243,2]
[426573909,1782613838000,-1350.79,0.000261,3]
[426573896,1782613838000,-446.0,0.00025423,2]
[426573901,1782613838000,-442.20465996,0.00025455,2]
[426573889,1782613838000,-15050.42572386,0.0002465,2]
[426573907,1782613838000,-1350.799,0.000261,3]
[426573904,1782613838000,-310.0,0.00026,2]
[426573906,1782613838000,-170.0,0.00026,2]
[426573911,1782613838000,-1980.6854,0.000261,2]
[426573913,1782613838000,-441.7663,0.000261,3]
[426573893,1782613838000,-247.983,0.00025282,2]
[426573902,1782613838000,-257.70184144,0.00025455,2]
[426573894,1782613838000,-286.434057,0.0002529,2]
[426573883,1782613838000,-500.0,0.00024649,2]
[426573887,1782613838000,-389.5888121,0.00024649,2]
[426573867,1782613838000,-500.0,0.00024649,2]
[426573871,1782613838000,-500.0,0.00024649,2]
[426573873,1782613838000,-470.3060965,0.00024649,2]
[426573869,1782613838000,-525.91619621,0.00024649,2]
[426573885,1782613838000,-500.0,0.00024649,2]
[426573865,1782613838000,-230.8203118,0.000243,2]
[426573879,1782613838000,-500.0,0.00024649,2]
[426573915,1782613838000,-286.434057,0.00026354,2]
[426573881,1782613838000,-500.0,0.00024649,2]
[426573875,1782613838000,-500.0,0.00024649,2]
[426573877,1782613838000,-500.0,0.00024649,2]
[426573864,1782613838000,-648.27217044,0.000243,2]
[426573891,1782613838000,-280.0,0.00024658,2]
[426573917,1782613838000,-406.12,0.0002643,15]
[426573899,1782613838000,-186.0,0.00025423,2]
[426573926,1782613838000,-186.0,0.00028423,2]
[426573919,1782613838000,-286.434057,0.00027419,2]
[426573957,1782613838000,-1313.4337,0.000296,3]
[426573963,1782613838000,-200.0,0.00030062,2]
[426573964,1782613838000,-8047.0034658,0.00030136,2]
[426573966,1782613838000,-286.434057,0.00030613,2]
[426573961,1782613838000,-205.36610573,0.0003,2]
[426573970,1782613838000,-84422.36986769,0.00031,2]
[426573968,1782613838000,-200.0,0.00030645,2]
[426573959,1782613838000,-194.614355,0.000299,2]
[426573956,1782613838000,-216.1761,0.000296,2]
[426573954,1782613838000,-372.66870634,0.000296,2]
[426573942,1782613838000,-301.32,0.00029178,2]
[426573940,1782613838000,-20620.07765806,0.00029178,2]
[426573935,1782613838000,-200.56604145,0.00028661,2]
[426573898,1782613838000,-746.0,0.00025423,2]
[426573937,1782613838000,-361.0188746,0.00028661,2]
[426573922,1782613838000,-446.0,0.00028423,2]
[426573931,1782613838000,-344.1622212,0.00028661,2]
[426573927,1782613838000,-286.434057,0.00028484,2]
[426573929,1782613838000,-1100.21778872,0.00028661,2]
[426573933,1782613838000,-619.49199816,0.00028661,2]
[426573924,1782613838000,-746.0,0.00028423,2]
[426573950,1782613838000,-286.434057,0.00029548,2]
[426573939,1782613838000,-641.1695213,0.00028661,2]
[426573944,1782613838000,-336.3362939,0.00029278,7]
[426573946,1782613838000,-200.0,0.00029478,2]
[426573951,1782613838000,-1838.69399366,0.000296,2]
[426573948,1782613838000,-171.79214629,0.000295,2]
[426573920,1782613838000,-157.1902,0.000279,5]
[426574294,1782613843000,-195.37147374,0.00030137,2]
[426574316,1782613915000,160.0,0.00029178,30]
[426574319,1782613943000,3000.0,0.00022,120]
[426574337,1782614634000,512.6901011,0.00027452,120]
[426574572,1782615038000,-2215.0,0.00022468,2]
[426574542,1782615038000,-964.72507772,0.00022468,2]
[426574550,1782615038000,-2305.76801267,0.00022468,2]
[426574568,1782615038000,-1344.60324071,0.00022468,2]
[426574570,1782615038000,-490.97128263,0.00022468,7]
[426574574,1782615038000,-1851.157,0.00022468,2]
[426574576,1782615038000,-965.56413424,0.00022468,2]
[426574566,1782615038000,-2827.9036689,0.00022468,2]
[426574615,1782615040000,-354.44285484,0.00023592,7]
[426574614,1782615040000,-490.97128263,0.00022918,7]
[426574613,1782615040000,-464.33786576,0.00022468,2]
[426574633,1782615043000,-490.97128266,0.00025165,7]
[426574631,1782615043000,-136.52842779,0.00023592,7]
[426574632,1782615043000,-490.97128263,0.00024266,7]
[426574634,1782615043000,-2215.0,0.00025468,2]
[426574639,1782615043000,-3.775607,0.00028465,2]
[426574636,1782615043000,-1421.0,0.00025468,2]
[426574635,1782615043000,-1844.0,0.00025468,2]
[426574637,1782615043000,-153.89932062,0.000279,3]
[426574638,1782615043000,-500.0,0.00028465,2]
[426574654,1782615046000,-1844.0,0.00028468,2]
[426574653,1782615046000,-2215.0,0.00028468,2]
[426574652,1782615046000,-291.08735539,0.00028465,2]
[426574655,1782615046000,-1421.0,0.00028468,2]
[426574668,1782615047000,-260.35249994,0.00029558,2]
[426574669,1782615047000,-468.63449989,0.00029558,2]
[426574667,1782615047000,-161.38,0.0002927,2]
[426574666,1782615047000,-243.48529753,0.00029177,2]
[426574665,1782615047000,-500.0,0.00029177,2]
[426574664,1782615047000,-500.0,0.00029177,2]
[426574663,1782615047000,-500.0,0.00029177,2]
[426574658,1782615047000,-500.0,0.00029177,2]
[426574657,1782615047000,-161.2,0.00029098,2]
[426574662,1782615047000,-500.0,0.00029177,2]
[426574661,1782615047000,-500.0,0.00029177,2]
[426574660,1782615047000,-500.0,0.00029177,2]
[426574656,1782615047000,-1578.91132837,0.00029077,2]
[426574670,1782615047000,-161.88,0.0002962,2]
[426574659,1782615047000,-500.0,0.00029177,2]
[426574671,1782615047000,-163.01,0.00030099,2]
[426574675,1782615047000,-162.6,0.00030736,2]
[426574673,1782615047000,-190.92,0.00030684,2]
[426574674,1782615047000,-1578.91132837,0.00030687,2]
[426574678,1782615047000,-470.43970827,0.00030999,2]
[426574677,1782615047000,-500.0,0.00030999,2]
[426574676,1782615047000,-353.88891707,0.00030927,2]
[426574679,1782615047000,-500.0,0.00030999,2]
[426574683,1782615047000,-500.0,0.00030999,2]
[426574684,1782615047000,-450.0,0.00030999,2]
[426574682,1782615047000,-500.0,0.00030999,2]
[426574681,1782615047000,-500.0,0.00030999,2]
[426574687,1782615047000,-21251.11962479,0.00031,2]
[426574686,1782615047000,-179.85472994,0.00030999,2]
[426574680,1782615047000,-500.0,0.00030999,2]
[426574685,1782615047000,-256.93532849,0.00030999,2]
[426574672,1782615047000,-8446.90345391,0.00030137,2]
[426574690,1782615078000,716.78,0.0003,30]
[426574689,1782615078000,716.78,0.00030137,30]
[426574709,1782615440000,-354.44285484,0.000125,2]
[426574710,1782615441000,-490.97128263,0.000125,2]
[426574711,1782615442000,-464.33786576,0.000125,2]
[426574712,1782615452000,987.97852718,7.6e-05,2]
[426574719,1782615734000,160.0,0.00029177,30]
[426574808,1782616232000,-5551.42923802,0.00012,2]
[426575085,1782616240000,-1526.16546803,0.00012,2]
[426575103,1782616243000,-5642.71471455,0.00012,2]
[426575105,1782616243000,-3345.60030129,0.000125,2]
[426575107,1782616243000,-169.08282749,0.00022468,7]
[426575106,1782616243000,-150.344,0.00022468,2]
[426575108,1782616243000,-1421.0,0.00022468,2]
[426575110,1782616243000,-1844.0,0.00022468,2]
[426575109,1782616243000,-2215.0,0.00022468,2]
[426575113,1782616243000,-169.08282749,0.00022918,7]
[426575112,1782616243000,-446.0,0.00022468,2]
[426575114,1782616243000,-169.08282749,0.00023592,7]
[426575116,1782616243000,-169.08282751,0.00025165,7]
[426575117,1782616243000,-464.338,0.00025468,2]
[426575115,1782616243000,-169.08282749,0.00024266,7]
[426575118,1782616243000,-1101.27754985,0.00025468,2]
[426575111,1782616243000,-186.0,0.00022468,2]
[426575139,1782616347000,305.70731865,0.00029177,120]
[426575138,1782616347000,479.14574304,0.00029177,120]
[426575140,1782616347000,171.44664132,0.00029177,120]
[426575137,1782616347000,171.44664132,0.00029177,120]
[426575142,1782616347000,171.44664132,0.00029177,120]
[426575144,1782616347000,305.70731865,0.00029177,120]
[426575143,1782616347000,479.14574304,0.00029177,120]
[426575145,1782616347000,479.14574304,0.00029177,120]
[426575141,1782616347000,305.70731865,0.00029177,120]
[426575146,1782616348000,171.44664132,0.00029177,120]
[426575147,1782616348000,305.70731865,0.00029177,120]
[426575148,1782616348000,479.14574304,0.00029177,120]
[426575150,1782616348000,171.44664132,0.00029177,120]
[426575149,1782616348000,305.70731865,0.00029177,120]
[426575152,1782616348000,171.44664132,0.00029177,120]
[426575151,1782616348000,479.14574304,0.00029177,120]
[426575155,1782616348000,171.44664132,0.00029177,120]
[426575154,1782616348000,479.14574304,0.00029177,120]
[426575156,1782616348000,305.70731865,0.00029177,120]
[426575153,1782616348000,305.70731865,0.00029177,120]
[426575158,1782616349000,305.70731865,0.00029177,120]
[426575157,1782616349000,479.14574304,0.00029177,120]
[426575161,1782616349000,479.14574304,0.00029177,120]
[426575160,1782616349000,305.70731865,0.00029177,120]
[426575159,1782616349000,479.14574304,0.00029177,120]
[426575162,1782616349000,305.70731865,0.00029177,120]
[426575168,1782616350000,305.70731865,0.00029177,120]
[426575167,1782616350000,479.14574304,0.00029177,120]
[426575166,1782616350000,305.70731865,0.00029177,120]
[426575165,1782616350000,479.14574304,0.00029177,120]
[426575164,1782616350000,305.70731865,0.00029177,120]
[426575163,1782616350000,479.14574304,0.00029177,120]
[426575173,1782616351000,479.14574304,0.00029177,120]
[426575172,1782616351000,305.70731865,0.00029177,120]
[426575171,1782616351000,479.14574304,0.00029177,120]
[426575170,1782616351000,305.70731865,0.00029177,120]
[426575169,1782616351000,479.14574304,0.00029177,120]
[426575174,1782616352000,479.14574304,0.00029177,120]
[426575175,1782616352000,479.14574304,0.00029177,120]
[426575177,1782616352000,479.14574304,0.00029177,120]
[426575176,1782616352000,479.14574304,0.00029177,120]
[426575180,1782616353000,479.14574304,0.00029177,120]
[426575179,1782616353000,479.14574304,0.00029177,120]
[426575178,1782616353000,479.14574304,0.00029177,120]
[426575183,1782616354000,479.14574304,0.00029177,120]
[426575182,1782616354000,479.14574304,0.00029177,120]
[426575181,1782616354000,479.14574304,0.00029177,120]
[426575186,1782616355000,479.14574304,0.00029177,120]
[426575185,1782616355000,479.14574304,0.00029177,120]
[426575184,1782616355000,479.14574304,0.00029177,120]
[426575188,1782616356000,479.14574304,0.00029177,120]
[426575187,1782616356000,479.14574304,0.00029177,120]
[426575189,1782616467000,171.44664131,0.00029177,120]
[426575197,1782617037000,150.5,0.00030136,30]
[426575261,1782617379000,1030.0,0.0003013,30]
[426575312,1782617432000,-728.20272898,0.00026594,2]
[426575308,1782617432000,-186.0,0.00025559,2]
[426575310,1782617432000,-253.83842235,0.00026423,2]
[426575305,1782617432000,-832.2948718,0.00023319,2]
[426575306,1782617432000,-446.0,0.00025559,2]
[426575303,1782617432000,-186.0,0.00022559,2]
[426575301,1782617432000,-446.0,0.00022559,2]
[426575297,1782617432000,-2025.91836071,0.00019997,3]
[426575299,1782617432000,-4076.88529512,0.00020199,3]
[426575425,1782617438000,-446.0,0.00028559,2]
[426575423,1782617438000,-355.55210412,0.00026594,2]
[426575424,1782617438000,-298.0461085,0.00027,2]
[426575426,1782617438000,-50.43246726,0.00028559,2]
[426575528,1782617454000,151.0,0.00030137,30]
[426575529,1782617459000,486.15,0.00030137,30]
[426575530,1782617468000,242.61,0.000101,60]
[426575536,1782617552000,160.0,0.00029178,30]
[426575542,1782617676000,439.33798,0.00030137,30]
[426575552,1782617881000,30155.0,0.00030136,30]
[426575553,1782617964000,8000.0,0.00029177,30]
[426575556,1782618019000,549.17,0.00030136,30]
[426575577,1782618454000,1145.399,0.00030137,30]
[426575621,1782618632000,-2612.1141545,0.00021061,3]
[426575684,1782618633000,-642.55324006,0.00021061,3]
[426575687,1782618633000,-0.63932697,0.00021274,2]
[426575762,1782618639000,-2215.0,0.00023006,2]
[426575761,1782618639000,-792.91386183,0.00021274,2]
[426575763,1782618639000,-1844.0,0.00023006,2]
[426575768,1782618639000,-1001.11669685,0.00026006,2]
[426575767,1782618639000,-2215.0,0.00026006,2]
[426575765,1782618639000,-446.0,0.00023006,2]
[426575764,1782618639000,-321.321,0.00023006,2]
[426575766,1782618639000,-5065.533934,0.00025,2]
[426576028,1782618747000,215.01199104,0.00029178,110]
[426576048,1782619009000,160.0,0.00029178,30]
[426576053,1782619086000,-195.371,0.00012,2]
[426576055,1782619109000,-181.348,0.00012,2]
[426576076,1782619371000,160.0,0.00029168,30]
[426576093,1782619667000,183.55050066,0.0001,2]
[426576094,1782619709000,189.26817449,0.0001,2]
[426576133,1782619734000,182.50859683,0.0001,2]
[426576144,1782619803000,6.46062504,0.0001,2]
[426576362,1782619846000,-148.13489228,0.0001,2]
[426576364,1782619846000,-181.34837894,0.00012,2]
[426576363,1782619846000,-132.04289191,0.00012,2]
[426576367,1782619846000,-223.9011726,0.0002021,2]
[426576366,1782619846000,-252.59417666,0.00014965,2]
[426576365,1782619846000,-625.76471595,0.000125,2]
[426576368,1782619846000,-917.50728945,0.0002021,2]
[426576369,1782619913000,154.59551733,0.000102,24]
[426576370,1782619947000,164.41858778,0.00029168,120]
[426576371,1782619978000,300.21,0.0003,120]
[426576379,1782620315000,167.425654,0.00023661,120]
[426576507,1782621031000,-324.10449917,0.00021113,7]
[426576578,1782621032000,-592.35300851,0.00023004,2]
[426576574,1782621032000,-388.22714577,0.00021434,7]
[426576580,1782621032000,-1425.57498211,0.00023005,2]
[426576591,1782621032000,-718.73554858,0.00023005,2]
[426576593,1782621032000,-2750.0,0.00023005,2]
[426576585,1782621032000,-692.80529833,0.00023005,2]
[426576588,1782621032000,-12785.42347687,0.00023005,2]
[426576576,1782621032000,-196.2152463,0.00022689,2]
[426576650,1782621038000,-282.95150528,0.00026457,2]
[426576648,1782621038000,-1184.18349633,0.00026357,2]
[426576659,1782621038000,-191.287267,0.00028203,2]
[426576652,1782621038000,-610.07798418,0.00026457,2]
[426576651,1782621038000,-509.31270951,0.00026457,2]
[426576647,1782621038000,-160.0,0.00024094,2]
[426576644,1782621038000,-247.9278105,0.00023539,2]
[426576640,1782621038000,-3664.90470072,0.00023005,2]
[426576642,1782621038000,-186.0,0.00023517,2]
[426576645,1782621038000,-167.425654,0.00023661,2]
[426576643,1782621038000,-1844.0,0.00023517,2]
[426576654,1782621038000,-186.0,0.00026517,2]
[426576646,1782621038000,-800.0,0.00024094,2]
[426576649,1782621038000,-338.93221343,0.00026457,2]
[426576667,1782621038000,-1322.54433905,0.00029171,2]
[426576655,1782621038000,-842.884,0.00026517,2]
[426576657,1782621038000,-160.0,0.00027397,2]
[426576658,1782621038000,-500.0,0.00027397,2]
[426576653,1782621038000,-446.0,0.00026517,2]
[426576661,1782621038000,-151.5,0.00028897,2]
[426576662,1782621038000,-904.53937208,0.00029017,2]
[426576660,1782621038000,-1184.18349627,0.00028355,2]
[426576664,1782621038000,-500.0,0.00029169,2]
[426576663,1782621038000,-217.44977191,0.00029113,2]
[426576668,1782621038000,-3990.60048509,0.00029171,2]
[426576669,1782621038000,-2448.14721994,0.00029171,2]
[426576666,1782621038000,-500.0,0.0002917,2]
[426576641,1782621038000,-446.0,0.00023517,2]
[426576656,1782621038000,-850.0,0.00027397,2]
[426576665,1782621038000,-500.0,0.0002917,2]
[426576710,1782621046000,-1861.17568974,0.00029171,2]
[426576709,1782621046000,-1011.85278006,0.00029171,2]
[426576722,1782621190000,160.0,0.00029171,30]
[426577045,1782622238000,-301.87154325,0.00023703,3]
[426577046,1782622238000,-241.43901346,0.00024184,2]
[426577472,1782622659000,-464.33937955,0.000118,5]
[426577473,1782622660000,-354.44285484,0.000118,5]
[426577474,1782622661000,-490.97128263,0.000118,5]
[426577504,1782622853000,-1871.37953669,0.00011682,3]
[426577507,1782622910000,182.50859683,0.0001,23]
[426577512,1782623009000,160.0,0.0002917,30]
[426577536,1782623396000,277.75,0.00030137,30]
[426577591,1782623432000,-251.60250229,0.000118,5]
[426577585,1782623432000,-3521.56675466,0.000118,5]
[426577583,1782623432000,-156.0,0.00011582,2]
[426577673,1782623440000,-1705.60502582,0.00011351,3]
[426577801,1782624235000,4415.29927999,0.0003,30]
[426577804,1782624387000,4202.1471266,0.00011,3]
[426577868,1782624555000,1024.14775006,0.0002917,30]
[426577869,1782624617000,453.0,0.00011,3]
[426578153,1782624653000,-300.0,0.00011799,2]
[426578154,1782624669000,-3864.37928706,0.000118,5]
[426578155,1782624670000,7660.0,0.00027,120]
[426578157,1782624710000,189.26817449,0.0001003,23]
[426578158,1782624828000,160.0,0.0002917,30]
[426578165,1782625072000,168.3639803,0.0001,23]
[426578167,1782625121000,400.0,0.00028059,30]
[426578168,1782625122000,494.64723089,0.00028059,30]
[426578169,1782625122000,400.0,0.00029168,30]
[426578170,1782625122000,400.0,0.00029168,30]
[426578171,1782625122000,400.0,0.00028059,30]
[426578174,1782625122000,400.0,0.00029168,30]
[426578172,1782625122000,372.75998319,0.00029168,30]
[426578175,1782625122000,326.27738467,0.00029168,30]
[426578177,1782625122000,400.0,0.00029168,30]
[426578176,1782625122000,400.0,0.00029168,30]
[426578178,1782625122000,400.0,0.00029168,30]
[426578180,1782625122000,400.0,0.00029168,30]
[426578179,1782625122000,400.0,0.00029168,30]
[426578181,1782625122000,400.0,0.00029168,30]
[426578173,1782625122000,400.0,0.00029168,30]
[426578182,1782625123000,400.0,0.00029168,30]